{"text_format":"3","workbook":"xlsx","n_sheets":4,"sheets":["DOGODKI","KOLEDAR","RAZLIČICA ZA TISKANJE","SKRBNIK"],"not_rendered":{"defined_names":18},"read":"whole","date_system":"1900"}

{"sheet":"DOGODKI","index":0,"n_rows":38,"n_cols":5,"rows_kept":38}
[]
[null,"NAČRTOVALNIK MESEČNIH"]
[null,"DOGODKOV SKUPNOSTI"]
[]
[]
[]
[]
[null,"DATUM","DAN","MESEC","IME DOGODKA"]
[null,"2016-07-01",{"$f":"IF(ISBLANK(tab.Dogodki[[#This Row],[DATUM]]),\"\",UPPER(TEXT(tab.Dogodki[[#This Row],[DATUM]],\"ddd\")))","v":"PET"},{"$f":"IF(ISBLANK(tab.Dogodki[[#This Row],[DATUM]]),\"\",UPPER(TEXT(tab.Dogodki[[#This Row],[DATUM]],\"mmm\")))","v":"JUL"},"Vrt skupnosti"]
[null,"2016-07-01",{"$f":"IF(ISBLANK(tab.Dogodki[[#This Row],[DATUM]]),\"\",UPPER(TEXT(tab.Dogodki[[#This Row],[DATUM]],\"ddd\")))","v":"PET"},{"$f":"IF(ISBLANK(tab.Dogodki[[#This Row],[DATUM]]),\"\",UPPER(TEXT(tab.Dogodki[[#This Row],[DATUM]],\"mmm\")))","v":"JUL"},"Mestni svet"]
[null,"2016-07-02",{"$f":"IF(ISBLANK(tab.Dogodki[[#This Row],[DATUM]]),\"\",UPPER(TEXT(tab.Dogodki[[#This Row],[DATUM]],\"ddd\")))","v":"SOB"},{"$f":"IF(ISBLANK(tab.Dogodki[[#This Row],[DATUM]]),\"\",UPPER(TEXT(tab.Dogodki[[#This Row],[DATUM]],\"mmm\")))","v":"JUL"},"Vrt skupnosti"]
[null,"2016-07-03",{"$f":"IF(ISBLANK(tab.Dogodki[[#This Row],[DATUM]]),\"\",UPPER(TEXT(tab.Dogodki[[#This Row],[DATUM]],\"ddd\")))","v":"NED"},{"$f":"IF(ISBLANK(tab.Dogodki[[#This Row],[DATUM]]),\"\",UPPER(TEXT(tab.Dogodki[[#This Row],[DATUM]],\"mmm\")))","v":"JUL"},"večer ogleda filmov v parku"]
[null,"2016-07-08",{"$f":"IF(ISBLANK(tab.Dogodki[[#This Row],[DATUM]]),\"\",UPPER(TEXT(tab.Dogodki[[#This Row],[DATUM]],\"ddd\")))","v":"PET"},{"$f":"IF(ISBLANK(tab.Dogodki[[#This Row],[DATUM]]),\"\",UPPER(TEXT(tab.Dogodki[[#This Row],[DATUM]],\"mmm\")))","v":"JUL"},"Mestni svet"]
[null,"2016-07-11",{"$f":"IF(ISBLANK(tab.Dogodki[[#This Row],[DATUM]]),\"\",UPPER(TEXT(tab.Dogodki[[#This Row],[DATUM]],\"ddd\")))","v":"PON"},{"$f":"IF(ISBLANK(tab.Dogodki[[#This Row],[DATUM]]),\"\",UPPER(TEXT(tab.Dogodki[[#This Row],[DATUM]],\"mmm\")))","v":"JUL"},"Delovno kosilo trgovinske zbornice"]
[null,"2016-07-12",{"$f":"IF(ISBLANK(tab.Dogodki[[#This Row],[DATUM]]),\"\",UPPER(TEXT(tab.Dogodki[[#This Row],[DATUM]],\"ddd\")))","v":"TOR"},{"$f":"IF(ISBLANK(tab.Dogodki[[#This Row],[DATUM]]),\"\",UPPER(TEXT(tab.Dogodki[[#This Row],[DATUM]],\"mmm\")))","v":"JUL"},"Sejem starin"]
[null,"2016-07-14",{"$f":"IF(ISBLANK(tab.Dogodki[[#This Row],[DATUM]]),\"\",UPPER(TEXT(tab.Dogodki[[#This Row],[DATUM]],\"ddd\")))","v":"ČET"},{"$f":"IF(ISBLANK(tab.Dogodki[[#This Row],[DATUM]]),\"\",UPPER(TEXT(tab.Dogodki[[#This Row],[DATUM]],\"mmm\")))","v":"JUL"},"Delavnica skupnosti"]
[null,"2016-07-15",{"$f":"IF(ISBLANK(tab.Dogodki[[#This Row],[DATUM]]),\"\",UPPER(TEXT(tab.Dogodki[[#This Row],[DATUM]],\"ddd\")))","v":"PET"},{"$f":"IF(ISBLANK(tab.Dogodki[[#This Row],[DATUM]]),\"\",UPPER(TEXT(tab.Dogodki[[#This Row],[DATUM]],\"mmm\")))","v":"JUL"},"Mestni svet"]
[null,"2016-07-19",{"$f":"IF(ISBLANK(tab.Dogodki[[#This Row],[DATUM]]),\"\",UPPER(TEXT(tab.Dogodki[[#This Row],[DATUM]],\"ddd\")))","v":"TOR"},{"$f":"IF(ISBLANK(tab.Dogodki[[#This Row],[DATUM]]),\"\",UPPER(TEXT(tab.Dogodki[[#This Row],[DATUM]],\"mmm\")))","v":"JUL"},"Delavnica strateškega načrtovanja"]
[null,"2016-07-20",{"$f":"IF(ISBLANK(tab.Dogodki[[#This Row],[DATUM]]),\"\",UPPER(TEXT(tab.Dogodki[[#This Row],[DATUM]],\"ddd\")))","v":"SRE"},{"$f":"IF(ISBLANK(tab.Dogodki[[#This Row],[DATUM]]),\"\",UPPER(TEXT(tab.Dogodki[[#This Row],[DATUM]],\"mmm\")))","v":"JUL"},"Čistilna akcija v parku"]
[null,"2016-07-22",{"$f":"IF(ISBLANK(tab.Dogodki[[#This Row],[DATUM]]),\"\",UPPER(TEXT(tab.Dogodki[[#This Row],[DATUM]],\"ddd\")))","v":"PET"},{"$f":"IF(ISBLANK(tab.Dogodki[[#This Row],[DATUM]]),\"\",UPPER(TEXT(tab.Dogodki[[#This Row],[DATUM]],\"mmm\")))","v":"JUL"},"Mestni svet"]
[null,"2016-07-26",{"$f":"IF(ISBLANK(tab.Dogodki[[#This Row],[DATUM]]),\"\",UPPER(TEXT(tab.Dogodki[[#This Row],[DATUM]],\"ddd\")))","v":"TOR"},{"$f":"IF(ISBLANK(tab.Dogodki[[#This Row],[DATUM]]),\"\",UPPER(TEXT(tab.Dogodki[[#This Row],[DATUM]],\"mmm\")))","v":"JUL"},"Sprehod po središču mesta"]
[null,"2016-07-26",{"$f":"IF(ISBLANK(tab.Dogodki[[#This Row],[DATUM]]),\"\",UPPER(TEXT(tab.Dogodki[[#This Row],[DATUM]],\"ddd\")))","v":"TOR"},{"$f":"IF(ISBLANK(tab.Dogodki[[#This Row],[DATUM]]),\"\",UPPER(TEXT(tab.Dogodki[[#This Row],[DATUM]],\"mmm\")))","v":"JUL"},"Obhod po barih"]
[null,"2016-07-29",{"$f":"IF(ISBLANK(tab.Dogodki[[#This Row],[DATUM]]),\"\",UPPER(TEXT(tab.Dogodki[[#This Row],[DATUM]],\"ddd\")))","v":"PET"},{"$f":"IF(ISBLANK(tab.Dogodki[[#This Row],[DATUM]]),\"\",UPPER(TEXT(tab.Dogodki[[#This Row],[DATUM]],\"mmm\")))","v":"JUL"},"Mestni svet"]
[null,"2016-08-05",{"$f":"IF(ISBLANK(tab.Dogodki[[#This Row],[DATUM]]),\"\",UPPER(TEXT(tab.Dogodki[[#This Row],[DATUM]],\"ddd\")))","v":"PET"},{"$f":"IF(ISBLANK(tab.Dogodki[[#This Row],[DATUM]]),\"\",UPPER(TEXT(tab.Dogodki[[#This Row],[DATUM]],\"mmm\")))","v":"AVG"},"Mestni svet"]
[null,"2016-08-10",{"$f":"IF(ISBLANK(tab.Dogodki[[#This Row],[DATUM]]),\"\",UPPER(TEXT(tab.Dogodki[[#This Row],[DATUM]],\"ddd\")))","v":"SRE"},{"$f":"IF(ISBLANK(tab.Dogodki[[#This Row],[DATUM]]),\"\",UPPER(TEXT(tab.Dogodki[[#This Row],[DATUM]],\"mmm\")))","v":"AVG"},"Čistilna akcija v parku"]
[null,"2016-08-12",{"$f":"IF(ISBLANK(tab.Dogodki[[#This Row],[DATUM]]),\"\",UPPER(TEXT(tab.Dogodki[[#This Row],[DATUM]],\"ddd\")))","v":"PET"},{"$f":"IF(ISBLANK(tab.Dogodki[[#This Row],[DATUM]]),\"\",UPPER(TEXT(tab.Dogodki[[#This Row],[DATUM]],\"mmm\")))","v":"AVG"},"Mestni svet"]
[null,"2016-08-13",{"$f":"IF(ISBLANK(tab.Dogodki[[#This Row],[DATUM]]),\"\",UPPER(TEXT(tab.Dogodki[[#This Row],[DATUM]],\"ddd\")))","v":"SOB"},{"$f":"IF(ISBLANK(tab.Dogodki[[#This Row],[DATUM]]),\"\",UPPER(TEXT(tab.Dogodki[[#This Row],[DATUM]],\"mmm\")))","v":"AVG"},"Vrt skupnosti"]
[null,"2016-09-01",{"$f":"IF(ISBLANK(tab.Dogodki[[#This Row],[DATUM]]),\"\",UPPER(TEXT(tab.Dogodki[[#This Row],[DATUM]],\"ddd\")))","v":"ČET"},{"$f":"IF(ISBLANK(tab.Dogodki[[#This Row],[DATUM]]),\"\",UPPER(TEXT(tab.Dogodki[[#This Row],[DATUM]],\"mmm\")))","v":"SEP"},"Odbor za proračun"]
[null,"2016-10-01",{"$f":"IF(ISBLANK(tab.Dogodki[[#This Row],[DATUM]]),\"\",UPPER(TEXT(tab.Dogodki[[#This Row],[DATUM]],\"ddd\")))","v":"SOB"},{"$f":"IF(ISBLANK(tab.Dogodki[[#This Row],[DATUM]]),\"\",UPPER(TEXT(tab.Dogodki[[#This Row],[DATUM]],\"mmm\")))","v":"OKT"},"Odbor za proračun"]
[null,"2016-11-03",{"$f":"IF(ISBLANK(tab.Dogodki[[#This Row],[DATUM]]),\"\",UPPER(TEXT(tab.Dogodki[[#This Row],[DATUM]],\"ddd\")))","v":"ČET"},{"$f":"IF(ISBLANK(tab.Dogodki[[#This Row],[DATUM]]),\"\",UPPER(TEXT(tab.Dogodki[[#This Row],[DATUM]],\"mmm\")))","v":"NOV"},"Odbor za proračun"]
[null,"2016-12-01",{"$f":"IF(ISBLANK(tab.Dogodki[[#This Row],[DATUM]]),\"\",UPPER(TEXT(tab.Dogodki[[#This Row],[DATUM]],\"ddd\")))","v":"ČET"},{"$f":"IF(ISBLANK(tab.Dogodki[[#This Row],[DATUM]]),\"\",UPPER(TEXT(tab.Dogodki[[#This Row],[DATUM]],\"mmm\")))","v":"DEC"},"Odbor za proračun"]
[null,"2017-01-01",{"$f":"IF(ISBLANK(tab.Dogodki[[#This Row],[DATUM]]),\"\",UPPER(TEXT(tab.Dogodki[[#This Row],[DATUM]],\"ddd\")))","v":"NED"},{"$f":"IF(ISBLANK(tab.Dogodki[[#This Row],[DATUM]]),\"\",UPPER(TEXT(tab.Dogodki[[#This Row],[DATUM]],\"mmm\")))","v":"JAN"},"Odbor za proračun"]
[null,"2017-02-02",{"$f":"IF(ISBLANK(tab.Dogodki[[#This Row],[DATUM]]),\"\",UPPER(TEXT(tab.Dogodki[[#This Row],[DATUM]],\"ddd\")))","v":"ČET"},{"$f":"IF(ISBLANK(tab.Dogodki[[#This Row],[DATUM]]),\"\",UPPER(TEXT(tab.Dogodki[[#This Row],[DATUM]],\"mmm\")))","v":"FEB"},"Odbor za proračun"]
[null,"2017-03-02",{"$f":"IF(ISBLANK(tab.Dogodki[[#This Row],[DATUM]]),\"\",UPPER(TEXT(tab.Dogodki[[#This Row],[DATUM]],\"ddd\")))","v":"ČET"},{"$f":"IF(ISBLANK(tab.Dogodki[[#This Row],[DATUM]]),\"\",UPPER(TEXT(tab.Dogodki[[#This Row],[DATUM]],\"mmm\")))","v":"MAR"},"Odbor za proračun"]
[null,"2017-04-01",{"$f":"IF(ISBLANK(tab.Dogodki[[#This Row],[DATUM]]),\"\",UPPER(TEXT(tab.Dogodki[[#This Row],[DATUM]],\"ddd\")))","v":"SOB"},{"$f":"IF(ISBLANK(tab.Dogodki[[#This Row],[DATUM]]),\"\",UPPER(TEXT(tab.Dogodki[[#This Row],[DATUM]],\"mmm\")))","v":"APR"},"Odbor za proračun"]
[null,"2017-05-01",{"$f":"IF(ISBLANK(tab.Dogodki[[#This Row],[DATUM]]),\"\",UPPER(TEXT(tab.Dogodki[[#This Row],[DATUM]],\"ddd\")))","v":"PON"},{"$f":"IF(ISBLANK(tab.Dogodki[[#This Row],[DATUM]]),\"\",UPPER(TEXT(tab.Dogodki[[#This Row],[DATUM]],\"mmm\")))","v":"MAJ"},"Odbor za proračun"]
[null,"2017-06-01",{"$f":"IF(ISBLANK(tab.Dogodki[[#This Row],[DATUM]]),\"\",UPPER(TEXT(tab.Dogodki[[#This Row],[DATUM]],\"ddd\")))","v":"ČET"},{"$f":"IF(ISBLANK(tab.Dogodki[[#This Row],[DATUM]]),\"\",UPPER(TEXT(tab.Dogodki[[#This Row],[DATUM]],\"mmm\")))","v":"JUN"},"Odbor za proračun"]
[null,"2017-06-02",{"$f":"IF(ISBLANK(tab.Dogodki[[#This Row],[DATUM]]),\"\",UPPER(TEXT(tab.Dogodki[[#This Row],[DATUM]],\"ddd\")))","v":"PET"},{"$f":"IF(ISBLANK(tab.Dogodki[[#This Row],[DATUM]]),\"\",UPPER(TEXT(tab.Dogodki[[#This Row],[DATUM]],\"mmm\")))","v":"JUN"},"Mestni svet"]

{"sheet":"KOLEDAR","index":1,"n_rows":35,"n_cols":21,"rows_kept":35,"merged":[[1,5,1,11],[30,8,34,20]]}
[]
[null,null,2016,null,null,{"$f":"LOOKUP(Št.Meseca,tab.Meseci[ŠTEVILKA],tab.Meseci[MESEC])","v":"JULIJ"}]
[null,null,7,null,null,{"$f":"DATE(PrikažiLeto,Št.Meseca,1)","v":"2016-07-01"},null,null,{"$f":"WEEKDAY(DatumZačetka)","v":6}]
[null,null,"PON",null,null,"TOR",null,null,"SRE",null,null,"ČET",null,null,"PET",null,null,"SOB",null,null,"NED"]
[]
[null,null,{"$f":"DatumZačetka-(WEEKDAY(DatumZačetka)-2)+{0;1;2;3;4;5}*7 +{1,2,3,4,5,6,7}-3+COLUMN(B1)","v":"2016-06-27"},null,null,{"$f":"DatumZačetka-(WEEKDAY(DatumZačetka)-2)+{0;1;2;3;4;5}*7 +{1,2,3,4,5,6,7}-3+COLUMN(C1)","v":"2016-06-28"},null,null,{"$f":"DatumZačetka-(WEEKDAY(DatumZačetka)-2)+{0;1;2;3;4;5}*7 +{1,2,3,4,5,6,7}-3+COLUMN(D1)","v":"2016-06-29"},null,null,{"$f":"DatumZačetka-(WEEKDAY(DatumZačetka)-2)+{0;1;2;3;4;5}*7 +{1,2,3,4,5,6,7}-3+COLUMN(E1)","v":"2016-06-30"},null,null,{"$f":"DatumZačetka-(WEEKDAY(DatumZačetka)-2)+{0;1;2;3;4;5}*7 +{1,2,3,4,5,6,7}-3+COLUMN(F1)","v":"2016-07-01"},null,null,{"$f":"DatumZačetka-(WEEKDAY(DatumZačetka)-2)+{0;1;2;3;4;5}*7 +{1,2,3,4,5,6,7}-3+COLUMN(G1)","v":"2016-07-02"},null,null,{"$f":"DatumZačetka-(WEEKDAY(DatumZačetka)-2)+{0;1;2;3;4;5}*7 +{1,2,3,4,5,6,7}-3+COLUMN(H1)","v":"2016-07-03"}]
[null,null,{"$f":"IFERROR(INDEX(tab.Dogodki[],SMALL(IF(Datumi=C$6,ROW(Datumi)),ROW(1:1))-VrsticaTabele–Začetek,4),\"\")","v":""},null,null,{"$f":"IFERROR(INDEX(tab.Dogodki[],SMALL(IF(Datumi=F$6,ROW(Datumi)),ROW(1:1))-VrsticaTabele–Začetek,4),\"\")","v":""},null,null,{"$f":"IFERROR(INDEX(tab.Dogodki[],SMALL(IF(Datumi=I$6,ROW(Datumi)),ROW(1:1))-VrsticaTabele–Začetek,4),\"\")","v":""},null,null,{"$f":"IFERROR(INDEX(tab.Dogodki[],SMALL(IF(Datumi=L$6,ROW(Datumi)),ROW(1:1))-VrsticaTabele–Začetek,4),\"\")","v":""},null,null,{"$f":"IFERROR(INDEX(tab.Dogodki[],SMALL(IF(Datumi=O$6,ROW(Datumi)),ROW(1:1))-VrsticaTabele–Začetek,4),\"\")","v":"Vrt skupnosti"},null,null,{"$f":"IFERROR(INDEX(tab.Dogodki[],SMALL(IF(Datumi=R$6,ROW(Datumi)),ROW(1:1))-VrsticaTabele–Začetek,4),\"\")","v":"Vrt skupnosti"},null,null,{"$f":"IFERROR(INDEX(tab.Dogodki[],SMALL(IF(Datumi=U$6,ROW(Datumi)),ROW(1:1))-VrsticaTabele–Začetek,4),\"\")","v":"večer ogleda filmov v parku"}]
[null,null,{"$f":"IFERROR(INDEX(tab.Dogodki[],SMALL(IF(Datumi=C$6,ROW(Datumi)),ROW(2:2))-VrsticaTabele–Začetek,4),\"\")","v":""},null,null,{"$f":"IFERROR(INDEX(tab.Dogodki[],SMALL(IF(Datumi=F$6,ROW(Datumi)),ROW(2:2))-VrsticaTabele–Začetek,4),\"\")","v":""},null,null,{"$f":"IFERROR(INDEX(tab.Dogodki[],SMALL(IF(Datumi=I$6,ROW(Datumi)),ROW(2:2))-VrsticaTabele–Začetek,4),\"\")","v":""},null,null,{"$f":"IFERROR(INDEX(tab.Dogodki[],SMALL(IF(Datumi=L$6,ROW(Datumi)),ROW(2:2))-VrsticaTabele–Začetek,4),\"\")","v":""},null,null,{"$f":"IFERROR(INDEX(tab.Dogodki[],SMALL(IF(Datumi=O$6,ROW(Datumi)),ROW(2:2))-VrsticaTabele–Začetek,4),\"\")","v":"Mestni svet"},null,null,{"$f":"IFERROR(INDEX(tab.Dogodki[],SMALL(IF(Datumi=R$6,ROW(Datumi)),ROW(2:2))-VrsticaTabele–Začetek,4),\"\")","v":""},null,null,{"$f":"IFERROR(INDEX(tab.Dogodki[],SMALL(IF(Datumi=U$6,ROW(Datumi)),ROW(2:2))-VrsticaTabele–Začetek,4),\"\")","v":""}]
[null,null,{"$f":"IFERROR(INDEX(tab.Dogodki[],SMALL(IF(Datumi=C$6,ROW(Datumi)),ROW(3:3))-VrsticaTabele–Začetek,4),\"\")","v":""},null,null,{"$f":"IFERROR(INDEX(tab.Dogodki[],SMALL(IF(Datumi=F$6,ROW(Datumi)),ROW(3:3))-VrsticaTabele–Začetek,4),\"\")","v":""},null,null,{"$f":"IFERROR(INDEX(tab.Dogodki[],SMALL(IF(Datumi=I$6,ROW(Datumi)),ROW(3:3))-VrsticaTabele–Začetek,4),\"\")","v":""},null,null,{"$f":"IFERROR(INDEX(tab.Dogodki[],SMALL(IF(Datumi=L$6,ROW(Datumi)),ROW(3:3))-VrsticaTabele–Začetek,4),\"\")","v":""},null,null,{"$f":"IFERROR(INDEX(tab.Dogodki[],SMALL(IF(Datumi=O$6,ROW(Datumi)),ROW(3:3))-VrsticaTabele–Začetek,4),\"\")","v":""},null,null,{"$f":"IFERROR(INDEX(tab.Dogodki[],SMALL(IF(Datumi=R$6,ROW(Datumi)),ROW(3:3))-VrsticaTabele–Začetek,4),\"\")","v":""},null,null,{"$f":"IFERROR(INDEX(tab.Dogodki[],SMALL(IF(Datumi=U$6,ROW(Datumi)),ROW(3:3))-VrsticaTabele–Začetek,4),\"\")","v":""}]
[null,null,{"$f":"IFERROR(INDEX(tab.Dogodki[],SMALL(IF(Datumi=C$6,ROW(Datumi)),ROW(4:4))-VrsticaTabele–Začetek,4),\"\")","v":""},null,null,{"$f":"IFERROR(INDEX(tab.Dogodki[],SMALL(IF(Datumi=F$6,ROW(Datumi)),ROW(4:4))-VrsticaTabele–Začetek,4),\"\")","v":""},null,null,{"$f":"IFERROR(INDEX(tab.Dogodki[],SMALL(IF(Datumi=I$6,ROW(Datumi)),ROW(4:4))-VrsticaTabele–Začetek,4),\"\")","v":""},null,null,{"$f":"IFERROR(INDEX(tab.Dogodki[],SMALL(IF(Datumi=L$6,ROW(Datumi)),ROW(4:4))-VrsticaTabele–Začetek,4),\"\")","v":""},null,null,{"$f":"IFERROR(INDEX(tab.Dogodki[],SMALL(IF(Datumi=O$6,ROW(Datumi)),ROW(4:4))-VrsticaTabele–Začetek,4),\"\")","v":""},null,null,{"$f":"IFERROR(INDEX(tab.Dogodki[],SMALL(IF(Datumi=R$6,ROW(Datumi)),ROW(4:4))-VrsticaTabele–Začetek,4),\"\")","v":""},null,null,{"$f":"IFERROR(INDEX(tab.Dogodki[],SMALL(IF(Datumi=U$6,ROW(Datumi)),ROW(4:4))-VrsticaTabele–Začetek,4),\"\")","v":""}]
[null,null,{"$f":"U6+1","v":"2016-07-04"},null,null,{"$f":"C11+1","v":"2016-07-05"},null,null,{"$f":"F11+1","v":"2016-07-06"},null,null,{"$f":"I11+1","v":"2016-07-07"},null,null,{"$f":"L11+1","v":"2016-07-08"},null,null,{"$f":"O11+1","v":"2016-07-09"},null,null,{"$f":"R11+1","v":"2016-07-10"}]
[null,null,{"$f":"IFERROR(INDEX(tab.Dogodki[],SMALL(IF(Datumi=C$11,ROW(Datumi)),ROW(1:1))-VrsticaTabele–Začetek,4),\"\")","v":""},null,null,{"$f":"IFERROR(INDEX(tab.Dogodki[],SMALL(IF(Datumi=F$11,ROW(Datumi)),ROW(1:1))-VrsticaTabele–Začetek,4),\"\")","v":""},null,null,{"$f":"IFERROR(INDEX(tab.Dogodki[],SMALL(IF(Datumi=I$11,ROW(Datumi)),ROW(1:1))-VrsticaTabele–Začetek,4),\"\")","v":""},null,null,{"$f":"IFERROR(INDEX(tab.Dogodki[],SMALL(IF(Datumi=L$11,ROW(Datumi)),ROW(1:1))-VrsticaTabele–Začetek,4),\"\")","v":""},null,null,{"$f":"IFERROR(INDEX(tab.Dogodki[],SMALL(IF(Datumi=O$11,ROW(Datumi)),ROW(1:1))-VrsticaTabele–Začetek,4),\"\")","v":"Mestni svet"},null,null,{"$f":"IFERROR(INDEX(tab.Dogodki[],SMALL(IF(Datumi=R$11,ROW(Datumi)),ROW(1:1))-VrsticaTabele–Začetek,4),\"\")","v":""},null,null,{"$f":"IFERROR(INDEX(tab.Dogodki[],SMALL(IF(Datumi=U$11,ROW(Datumi)),ROW(1:1))-VrsticaTabele–Začetek,4),\"\")","v":""}]
[null,null,{"$f":"IFERROR(INDEX(tab.Dogodki[],SMALL(IF(Datumi=C$11,ROW(Datumi)),ROW(2:2))-VrsticaTabele–Začetek,4),\"\")","v":""},null,null,{"$f":"IFERROR(INDEX(tab.Dogodki[],SMALL(IF(Datumi=F$11,ROW(Datumi)),ROW(2:2))-VrsticaTabele–Začetek,4),\"\")","v":""},null,null,{"$f":"IFERROR(INDEX(tab.Dogodki[],SMALL(IF(Datumi=I$11,ROW(Datumi)),ROW(2:2))-VrsticaTabele–Začetek,4),\"\")","v":""},null,null,{"$f":"IFERROR(INDEX(tab.Dogodki[],SMALL(IF(Datumi=L$11,ROW(Datumi)),ROW(2:2))-VrsticaTabele–Začetek,4),\"\")","v":""},null,null,{"$f":"IFERROR(INDEX(tab.Dogodki[],SMALL(IF(Datumi=O$11,ROW(Datumi)),ROW(2:2))-VrsticaTabele–Začetek,4),\"\")","v":""},null,null,{"$f":"IFERROR(INDEX(tab.Dogodki[],SMALL(IF(Datumi=R$11,ROW(Datumi)),ROW(2:2))-VrsticaTabele–Začetek,4),\"\")","v":""},null,null,{"$f":"IFERROR(INDEX(tab.Dogodki[],SMALL(IF(Datumi=U$11,ROW(Datumi)),ROW(2:2))-VrsticaTabele–Začetek,4),\"\")","v":""}]
[null,null,{"$f":"IFERROR(INDEX(tab.Dogodki[],SMALL(IF(Datumi=C$11,ROW(Datumi)),ROW(3:3))-VrsticaTabele–Začetek,4),\"\")","v":""},null,null,{"$f":"IFERROR(INDEX(tab.Dogodki[],SMALL(IF(Datumi=F$11,ROW(Datumi)),ROW(3:3))-VrsticaTabele–Začetek,4),\"\")","v":""},null,null,{"$f":"IFERROR(INDEX(tab.Dogodki[],SMALL(IF(Datumi=I$11,ROW(Datumi)),ROW(3:3))-VrsticaTabele–Začetek,4),\"\")","v":""},null,null,{"$f":"IFERROR(INDEX(tab.Dogodki[],SMALL(IF(Datumi=L$11,ROW(Datumi)),ROW(3:3))-VrsticaTabele–Začetek,4),\"\")","v":""},null,null,{"$f":"IFERROR(INDEX(tab.Dogodki[],SMALL(IF(Datumi=O$11,ROW(Datumi)),ROW(3:3))-VrsticaTabele–Začetek,4),\"\")","v":""},null,null,{"$f":"IFERROR(INDEX(tab.Dogodki[],SMALL(IF(Datumi=R$11,ROW(Datumi)),ROW(3:3))-VrsticaTabele–Začetek,4),\"\")","v":""},null,null,{"$f":"IFERROR(INDEX(tab.Dogodki[],SMALL(IF(Datumi=U$11,ROW(Datumi)),ROW(3:3))-VrsticaTabele–Začetek,4),\"\")","v":""}]
[null,null,{"$f":"IFERROR(INDEX(tab.Dogodki[],SMALL(IF(Datumi=C$11,ROW(Datumi)),ROW(4:4))-VrsticaTabele–Začetek,4),\"\")","v":""},null,null,{"$f":"IFERROR(INDEX(tab.Dogodki[],SMALL(IF(Datumi=F$11,ROW(Datumi)),ROW(4:4))-VrsticaTabele–Začetek,4),\"\")","v":""},null,null,{"$f":"IFERROR(INDEX(tab.Dogodki[],SMALL(IF(Datumi=I$11,ROW(Datumi)),ROW(4:4))-VrsticaTabele–Začetek,4),\"\")","v":""},null,null,{"$f":"IFERROR(INDEX(tab.Dogodki[],SMALL(IF(Datumi=L$11,ROW(Datumi)),ROW(4:4))-VrsticaTabele–Začetek,4),\"\")","v":""},null,null,{"$f":"IFERROR(INDEX(tab.Dogodki[],SMALL(IF(Datumi=O$11,ROW(Datumi)),ROW(4:4))-VrsticaTabele–Začetek,4),\"\")","v":""},null,null,{"$f":"IFERROR(INDEX(tab.Dogodki[],SMALL(IF(Datumi=R$11,ROW(Datumi)),ROW(4:4))-VrsticaTabele–Začetek,4),\"\")","v":""},null,null,{"$f":"IFERROR(INDEX(tab.Dogodki[],SMALL(IF(Datumi=U$11,ROW(Datumi)),ROW(4:4))-VrsticaTabele–Začetek,4),\"\")","v":""}]
[null,null,{"$f":"U11+1","v":"2016-07-11"},null,null,{"$f":"C16+1","v":"2016-07-12"},null,null,{"$f":"F16+1","v":"2016-07-13"},null,null,{"$f":"I16+1","v":"2016-07-14"},null,null,{"$f":"L16+1","v":"2016-07-15"},null,null,{"$f":"O16+1","v":"2016-07-16"},null,null,{"$f":"R16+1","v":"2016-07-17"}]
[null,null,{"$f":"IFERROR(INDEX(tab.Dogodki[],SMALL(IF(Datumi=C$16,ROW(Datumi)),ROW(1:1))-VrsticaTabele–Začetek,4),\"\")","v":"Delovno kosilo trgovinske zbornice"},null,null,{"$f":"IFERROR(INDEX(tab.Dogodki[],SMALL(IF(Datumi=F$16,ROW(Datumi)),ROW(1:1))-VrsticaTabele–Začetek,4),\"\")","v":"Sejem starin"},null,null,{"$f":"IFERROR(INDEX(tab.Dogodki[],SMALL(IF(Datumi=I$16,ROW(Datumi)),ROW(1:1))-VrsticaTabele–Začetek,4),\"\")","v":""},null,null,{"$f":"IFERROR(INDEX(tab.Dogodki[],SMALL(IF(Datumi=L$16,ROW(Datumi)),ROW(1:1))-VrsticaTabele–Začetek,4),\"\")","v":"Delavnica skupnosti"},null,null,{"$f":"IFERROR(INDEX(tab.Dogodki[],SMALL(IF(Datumi=O$16,ROW(Datumi)),ROW(1:1))-VrsticaTabele–Začetek,4),\"\")","v":"Mestni svet"},null,null,{"$f":"IFERROR(INDEX(tab.Dogodki[],SMALL(IF(Datumi=R$16,ROW(Datumi)),ROW(1:1))-VrsticaTabele–Začetek,4),\"\")","v":""},null,null,{"$f":"IFERROR(INDEX(tab.Dogodki[],SMALL(IF(Datumi=U$16,ROW(Datumi)),ROW(1:1))-VrsticaTabele–Začetek,4),\"\")","v":""}]
[null,null,{"$f":"IFERROR(INDEX(tab.Dogodki[],SMALL(IF(Datumi=C$16,ROW(Datumi)),ROW(2:2))-VrsticaTabele–Začetek,4),\"\")","v":""},null,null,{"$f":"IFERROR(INDEX(tab.Dogodki[],SMALL(IF(Datumi=F$16,ROW(Datumi)),ROW(2:2))-VrsticaTabele–Začetek,4),\"\")","v":""},null,null,{"$f":"IFERROR(INDEX(tab.Dogodki[],SMALL(IF(Datumi=I$16,ROW(Datumi)),ROW(2:2))-VrsticaTabele–Začetek,4),\"\")","v":""},null,null,{"$f":"IFERROR(INDEX(tab.Dogodki[],SMALL(IF(Datumi=L$16,ROW(Datumi)),ROW(2:2))-VrsticaTabele–Začetek,4),\"\")","v":""},null,null,{"$f":"IFERROR(INDEX(tab.Dogodki[],SMALL(IF(Datumi=O$16,ROW(Datumi)),ROW(2:2))-VrsticaTabele–Začetek,4),\"\")","v":""},null,null,{"$f":"IFERROR(INDEX(tab.Dogodki[],SMALL(IF(Datumi=R$16,ROW(Datumi)),ROW(2:2))-VrsticaTabele–Začetek,4),\"\")","v":""},null,null,{"$f":"IFERROR(INDEX(tab.Dogodki[],SMALL(IF(Datumi=U$16,ROW(Datumi)),ROW(2:2))-VrsticaTabele–Začetek,4),\"\")","v":""}]
[null,null,{"$f":"IFERROR(INDEX(tab.Dogodki[],SMALL(IF(Datumi=C$16,ROW(Datumi)),ROW(3:3))-VrsticaTabele–Začetek,4),\"\")","v":""},null,null,{"$f":"IFERROR(INDEX(tab.Dogodki[],SMALL(IF(Datumi=F$16,ROW(Datumi)),ROW(3:3))-VrsticaTabele–Začetek,4),\"\")","v":""},null,null,{"$f":"IFERROR(INDEX(tab.Dogodki[],SMALL(IF(Datumi=I$16,ROW(Datumi)),ROW(3:3))-VrsticaTabele–Začetek,4),\"\")","v":""},null,null,{"$f":"IFERROR(INDEX(tab.Dogodki[],SMALL(IF(Datumi=L$16,ROW(Datumi)),ROW(3:3))-VrsticaTabele–Začetek,4),\"\")","v":""},null,null,{"$f":"IFERROR(INDEX(tab.Dogodki[],SMALL(IF(Datumi=O$16,ROW(Datumi)),ROW(3:3))-VrsticaTabele–Začetek,4),\"\")","v":""},null,null,{"$f":"IFERROR(INDEX(tab.Dogodki[],SMALL(IF(Datumi=R$16,ROW(Datumi)),ROW(3:3))-VrsticaTabele–Začetek,4),\"\")","v":""},null,null,{"$f":"IFERROR(INDEX(tab.Dogodki[],SMALL(IF(Datumi=U$16,ROW(Datumi)),ROW(3:3))-VrsticaTabele–Začetek,4),\"\")","v":""}]
[null,null,{"$f":"IFERROR(INDEX(tab.Dogodki[],SMALL(IF(Datumi=C$16,ROW(Datumi)),ROW(4:4))-VrsticaTabele–Začetek,4),\"\")","v":""},null,null,{"$f":"IFERROR(INDEX(tab.Dogodki[],SMALL(IF(Datumi=F$16,ROW(Datumi)),ROW(4:4))-VrsticaTabele–Začetek,4),\"\")","v":""},null,null,{"$f":"IFERROR(INDEX(tab.Dogodki[],SMALL(IF(Datumi=I$16,ROW(Datumi)),ROW(4:4))-VrsticaTabele–Začetek,4),\"\")","v":""},null,null,{"$f":"IFERROR(INDEX(tab.Dogodki[],SMALL(IF(Datumi=L$16,ROW(Datumi)),ROW(4:4))-VrsticaTabele–Začetek,4),\"\")","v":""},null,null,{"$f":"IFERROR(INDEX(tab.Dogodki[],SMALL(IF(Datumi=O$16,ROW(Datumi)),ROW(4:4))-VrsticaTabele–Začetek,4),\"\")","v":""},null,null,{"$f":"IFERROR(INDEX(tab.Dogodki[],SMALL(IF(Datumi=R$16,ROW(Datumi)),ROW(4:4))-VrsticaTabele–Začetek,4),\"\")","v":""},null,null,{"$f":"IFERROR(INDEX(tab.Dogodki[],SMALL(IF(Datumi=U$16,ROW(Datumi)),ROW(4:4))-VrsticaTabele–Začetek,4),\"\")","v":""}]
[null,null,{"$f":"U16+1","v":"2016-07-18"},null,null,{"$f":"C21+1","v":"2016-07-19"},null,null,{"$f":"F21+1","v":"2016-07-20"},null,null,{"$f":"I21+1","v":"2016-07-21"},null,null,{"$f":"L21+1","v":"2016-07-22"},null,null,{"$f":"O21+1","v":"2016-07-23"},null,null,{"$f":"R21+1","v":"2016-07-24"}]
[null,null,{"$f":"IFERROR(INDEX(tab.Dogodki[],SMALL(IF(Datumi=C$21,ROW(Datumi)),ROW(1:1))-VrsticaTabele–Začetek,4),\"\")","v":""},null,null,{"$f":"IFERROR(INDEX(tab.Dogodki[],SMALL(IF(Datumi=F$21,ROW(Datumi)),ROW(1:1))-VrsticaTabele–Začetek,4),\"\")","v":"Delavnica strateškega načrtovanja"},null,null,{"$f":"IFERROR(INDEX(tab.Dogodki[],SMALL(IF(Datumi=I$21,ROW(Datumi)),ROW(1:1))-VrsticaTabele–Začetek,4),\"\")","v":"Čistilna akcija v parku"},null,null,{"$f":"IFERROR(INDEX(tab.Dogodki[],SMALL(IF(Datumi=L$21,ROW(Datumi)),ROW(1:1))-VrsticaTabele–Začetek,4),\"\")","v":""},null,null,{"$f":"IFERROR(INDEX(tab.Dogodki[],SMALL(IF(Datumi=O$21,ROW(Datumi)),ROW(1:1))-VrsticaTabele–Začetek,4),\"\")","v":"Mestni svet"},null,null,{"$f":"IFERROR(INDEX(tab.Dogodki[],SMALL(IF(Datumi=R$21,ROW(Datumi)),ROW(1:1))-VrsticaTabele–Začetek,4),\"\")","v":""},null,null,{"$f":"IFERROR(INDEX(tab.Dogodki[],SMALL(IF(Datumi=U$21,ROW(Datumi)),ROW(1:1))-VrsticaTabele–Začetek,4),\"\")","v":""}]
[null,null,{"$f":"IFERROR(INDEX(tab.Dogodki[],SMALL(IF(Datumi=C$21,ROW(Datumi)),ROW(2:2))-VrsticaTabele–Začetek,4),\"\")","v":""},null,null,{"$f":"IFERROR(INDEX(tab.Dogodki[],SMALL(IF(Datumi=F$21,ROW(Datumi)),ROW(2:2))-VrsticaTabele–Začetek,4),\"\")","v":""},null,null,{"$f":"IFERROR(INDEX(tab.Dogodki[],SMALL(IF(Datumi=I$21,ROW(Datumi)),ROW(2:2))-VrsticaTabele–Začetek,4),\"\")","v":""},null,null,{"$f":"IFERROR(INDEX(tab.Dogodki[],SMALL(IF(Datumi=L$21,ROW(Datumi)),ROW(2:2))-VrsticaTabele–Začetek,4),\"\")","v":""},null,null,{"$f":"IFERROR(INDEX(tab.Dogodki[],SMALL(IF(Datumi=O$21,ROW(Datumi)),ROW(2:2))-VrsticaTabele–Začetek,4),\"\")","v":""},null,null,{"$f":"IFERROR(INDEX(tab.Dogodki[],SMALL(IF(Datumi=R$21,ROW(Datumi)),ROW(2:2))-VrsticaTabele–Začetek,4),\"\")","v":""},null,null,{"$f":"IFERROR(INDEX(tab.Dogodki[],SMALL(IF(Datumi=U$21,ROW(Datumi)),ROW(2:2))-VrsticaTabele–Začetek,4),\"\")","v":""}]
[null,null,{"$f":"IFERROR(INDEX(tab.Dogodki[],SMALL(IF(Datumi=C$21,ROW(Datumi)),ROW(3:3))-VrsticaTabele–Začetek,4),\"\")","v":""},null,null,{"$f":"IFERROR(INDEX(tab.Dogodki[],SMALL(IF(Datumi=F$21,ROW(Datumi)),ROW(3:3))-VrsticaTabele–Začetek,4),\"\")","v":""},null,null,{"$f":"IFERROR(INDEX(tab.Dogodki[],SMALL(IF(Datumi=I$21,ROW(Datumi)),ROW(3:3))-VrsticaTabele–Začetek,4),\"\")","v":""},null,null,{"$f":"IFERROR(INDEX(tab.Dogodki[],SMALL(IF(Datumi=L$21,ROW(Datumi)),ROW(3:3))-VrsticaTabele–Začetek,4),\"\")","v":""},null,null,{"$f":"IFERROR(INDEX(tab.Dogodki[],SMALL(IF(Datumi=O$21,ROW(Datumi)),ROW(3:3))-VrsticaTabele–Začetek,4),\"\")","v":""},null,null,{"$f":"IFERROR(INDEX(tab.Dogodki[],SMALL(IF(Datumi=R$21,ROW(Datumi)),ROW(3:3))-VrsticaTabele–Začetek,4),\"\")","v":""},null,null,{"$f":"IFERROR(INDEX(tab.Dogodki[],SMALL(IF(Datumi=U$21,ROW(Datumi)),ROW(3:3))-VrsticaTabele–Začetek,4),\"\")","v":""}]
[null,null,{"$f":"IFERROR(INDEX(tab.Dogodki[],SMALL(IF(Datumi=C$21,ROW(Datumi)),ROW(4:4))-VrsticaTabele–Začetek,4),\"\")","v":""},null,null,{"$f":"IFERROR(INDEX(tab.Dogodki[],SMALL(IF(Datumi=F$21,ROW(Datumi)),ROW(4:4))-VrsticaTabele–Začetek,4),\"\")","v":""},null,null,{"$f":"IFERROR(INDEX(tab.Dogodki[],SMALL(IF(Datumi=I$21,ROW(Datumi)),ROW(4:4))-VrsticaTabele–Začetek,4),\"\")","v":""},null,null,{"$f":"IFERROR(INDEX(tab.Dogodki[],SMALL(IF(Datumi=L$21,ROW(Datumi)),ROW(4:4))-VrsticaTabele–Začetek,4),\"\")","v":""},null,null,{"$f":"IFERROR(INDEX(tab.Dogodki[],SMALL(IF(Datumi=O$21,ROW(Datumi)),ROW(4:4))-VrsticaTabele–Začetek,4),\"\")","v":""},null,null,{"$f":"IFERROR(INDEX(tab.Dogodki[],SMALL(IF(Datumi=R$21,ROW(Datumi)),ROW(4:4))-VrsticaTabele–Začetek,4),\"\")","v":""},null,null,{"$f":"IFERROR(INDEX(tab.Dogodki[],SMALL(IF(Datumi=U$21,ROW(Datumi)),ROW(4:4))-VrsticaTabele–Začetek,4),\"\")","v":""}]
[null,null,{"$f":"U21+1","v":"2016-07-25"},null,null,{"$f":"C26+1","v":"2016-07-26"},null,null,{"$f":"F26+1","v":"2016-07-27"},null,null,{"$f":"I26+1","v":"2016-07-28"},null,null,{"$f":"L26+1","v":"2016-07-29"},null,null,{"$f":"O26+1","v":"2016-07-30"},null,null,{"$f":"R26+1","v":"2016-07-31"}]
[null,null,{"$f":"IFERROR(INDEX(tab.Dogodki[],SMALL(IF(Datumi=C$26,ROW(Datumi)),ROW(1:1))-VrsticaTabele–Začetek,4),\"\")","v":""},null,null,{"$f":"IFERROR(INDEX(tab.Dogodki[],SMALL(IF(Datumi=F$26,ROW(Datumi)),ROW(1:1))-VrsticaTabele–Začetek,4),\"\")","v":"Sprehod po središču mesta"},null,null,{"$f":"IFERROR(INDEX(tab.Dogodki[],SMALL(IF(Datumi=I$26,ROW(Datumi)),ROW(1:1))-VrsticaTabele–Začetek,4),\"\")","v":""},null,null,{"$f":"IFERROR(INDEX(tab.Dogodki[],SMALL(IF(Datumi=L$26,ROW(Datumi)),ROW(1:1))-VrsticaTabele–Začetek,4),\"\")","v":""},null,null,{"$f":"IFERROR(INDEX(tab.Dogodki[],SMALL(IF(Datumi=O$26,ROW(Datumi)),ROW(1:1))-VrsticaTabele–Začetek,4),\"\")","v":"Mestni svet"},null,null,{"$f":"IFERROR(INDEX(tab.Dogodki[],SMALL(IF(Datumi=R$26,ROW(Datumi)),ROW(1:1))-VrsticaTabele–Začetek,4),\"\")","v":""},null,null,{"$f":"IFERROR(INDEX(tab.Dogodki[],SMALL(IF(Datumi=U$26,ROW(Datumi)),ROW(1:1))-VrsticaTabele–Začetek,4),\"\")","v":""}]
[null,null,{"$f":"IFERROR(INDEX(tab.Dogodki[],SMALL(IF(Datumi=C$26,ROW(Datumi)),ROW(2:2))-VrsticaTabele–Začetek,4),\"\")","v":""},null,null,{"$f":"IFERROR(INDEX(tab.Dogodki[],SMALL(IF(Datumi=F$26,ROW(Datumi)),ROW(2:2))-VrsticaTabele–Začetek,4),\"\")","v":"Obhod po barih"},null,null,{"$f":"IFERROR(INDEX(tab.Dogodki[],SMALL(IF(Datumi=I$26,ROW(Datumi)),ROW(2:2))-VrsticaTabele–Začetek,4),\"\")","v":""},null,null,{"$f":"IFERROR(INDEX(tab.Dogodki[],SMALL(IF(Datumi=L$26,ROW(Datumi)),ROW(2:2))-VrsticaTabele–Začetek,4),\"\")","v":""},null,null,{"$f":"IFERROR(INDEX(tab.Dogodki[],SMALL(IF(Datumi=O$26,ROW(Datumi)),ROW(2:2))-VrsticaTabele–Začetek,4),\"\")","v":""},null,null,{"$f":"IFERROR(INDEX(tab.Dogodki[],SMALL(IF(Datumi=R$26,ROW(Datumi)),ROW(2:2))-VrsticaTabele–Začetek,4),\"\")","v":""},null,null,{"$f":"IFERROR(INDEX(tab.Dogodki[],SMALL(IF(Datumi=U$26,ROW(Datumi)),ROW(2:2))-VrsticaTabele–Začetek,4),\"\")","v":""}]
[null,null,{"$f":"IFERROR(INDEX(tab.Dogodki[],SMALL(IF(Datumi=C$26,ROW(Datumi)),ROW(3:3))-VrsticaTabele–Začetek,4),\"\")","v":""},null,null,{"$f":"IFERROR(INDEX(tab.Dogodki[],SMALL(IF(Datumi=F$26,ROW(Datumi)),ROW(3:3))-VrsticaTabele–Začetek,4),\"\")","v":""},null,null,{"$f":"IFERROR(INDEX(tab.Dogodki[],SMALL(IF(Datumi=I$26,ROW(Datumi)),ROW(3:3))-VrsticaTabele–Začetek,4),\"\")","v":""},null,null,{"$f":"IFERROR(INDEX(tab.Dogodki[],SMALL(IF(Datumi=L$26,ROW(Datumi)),ROW(3:3))-VrsticaTabele–Začetek,4),\"\")","v":""},null,null,{"$f":"IFERROR(INDEX(tab.Dogodki[],SMALL(IF(Datumi=O$26,ROW(Datumi)),ROW(3:3))-VrsticaTabele–Začetek,4),\"\")","v":""},null,null,{"$f":"IFERROR(INDEX(tab.Dogodki[],SMALL(IF(Datumi=R$26,ROW(Datumi)),ROW(3:3))-VrsticaTabele–Začetek,4),\"\")","v":""},null,null,{"$f":"IFERROR(INDEX(tab.Dogodki[],SMALL(IF(Datumi=U$26,ROW(Datumi)),ROW(3:3))-VrsticaTabele–Začetek,4),\"\")","v":""}]
[null,null,{"$f":"IFERROR(INDEX(tab.Dogodki[],SMALL(IF(Datumi=C$26,ROW(Datumi)),ROW(4:4))-VrsticaTabele–Začetek,4),\"\")","v":""},null,null,{"$f":"IFERROR(INDEX(tab.Dogodki[],SMALL(IF(Datumi=F$26,ROW(Datumi)),ROW(4:4))-VrsticaTabele–Začetek,4),\"\")","v":""},null,null,{"$f":"IFERROR(INDEX(tab.Dogodki[],SMALL(IF(Datumi=I$26,ROW(Datumi)),ROW(4:4))-VrsticaTabele–Začetek,4),\"\")","v":""},null,null,{"$f":"IFERROR(INDEX(tab.Dogodki[],SMALL(IF(Datumi=L$26,ROW(Datumi)),ROW(4:4))-VrsticaTabele–Začetek,4),\"\")","v":""},null,null,{"$f":"IFERROR(INDEX(tab.Dogodki[],SMALL(IF(Datumi=O$26,ROW(Datumi)),ROW(4:4))-VrsticaTabele–Začetek,4),\"\")","v":""},null,null,{"$f":"IFERROR(INDEX(tab.Dogodki[],SMALL(IF(Datumi=R$26,ROW(Datumi)),ROW(4:4))-VrsticaTabele–Začetek,4),\"\")","v":""},null,null,{"$f":"IFERROR(INDEX(tab.Dogodki[],SMALL(IF(Datumi=U$26,ROW(Datumi)),ROW(4:4))-VrsticaTabele–Začetek,4),\"\")","v":""}]
[null,null,{"$f":"U26+1","v":"2016-08-01"},null,null,{"$f":"C31+1","v":"2016-08-02"},null,null,"OPOMBE:"]
[null,null,{"$f":"IFERROR(INDEX(tab.Dogodki[],SMALL(IF(Datumi=C$31,ROW(Datumi)),ROW(1:1))-VrsticaTabele–Začetek,4),\"\")","v":""},null,null,{"$f":"IFERROR(INDEX(tab.Dogodki[],SMALL(IF(Datumi=F$31,ROW(Datumi)),ROW(1:1))-VrsticaTabele–Začetek,4),\"\")","v":""}]
[null,null,{"$f":"IFERROR(INDEX(tab.Dogodki[],SMALL(IF(Datumi=C$31,ROW(Datumi)),ROW(2:2))-VrsticaTabele–Začetek,4),\"\")","v":""},null,null,{"$f":"IFERROR(INDEX(tab.Dogodki[],SMALL(IF(Datumi=F$31,ROW(Datumi)),ROW(2:2))-VrsticaTabele–Začetek,4),\"\")","v":""}]
[null,null,{"$f":"IFERROR(INDEX(tab.Dogodki[],SMALL(IF(Datumi=C$31,ROW(Datumi)),ROW(3:3))-VrsticaTabele–Začetek,4),\"\")","v":""},null,null,{"$f":"IFERROR(INDEX(tab.Dogodki[],SMALL(IF(Datumi=F$31,ROW(Datumi)),ROW(3:3))-VrsticaTabele–Začetek,4),\"\")","v":""}]
[null,null,{"$f":"IFERROR(INDEX(tab.Dogodki[],SMALL(IF(Datumi=C$31,ROW(Datumi)),ROW(4:4))-VrsticaTabele–Začetek,4),\"\")","v":""},null,null,{"$f":"IFERROR(INDEX(tab.Dogodki[],SMALL(IF(Datumi=F$31,ROW(Datumi)),ROW(4:4))-VrsticaTabele–Začetek,4),\"\")","v":""}]

{"sheet":"RAZLIČICA ZA TISKANJE","index":2,"n_rows":35,"n_cols":21,"rows_kept":35,"merged":[[1,5,1,11],[30,8,34,20]]}
[]
[null,null,{"$f":"PrikažiLeto","v":2016},null,null,{"$f":"PrikažiMesec","v":"JULIJ"},0,0,0,0,0,0]
[]
[null,null,"PON",null,null,"TOR",null,null,"SRE",null,null,"ČET",null,null,"PET",null,null,"SOB",null,null,"NED"]
[]
[null,null,{"$f":"KOLEDAR!C6","v":"2016-06-27"},{"$f":"KOLEDAR!D6","v":0},{"$f":"KOLEDAR!E6","v":0},{"$f":"KOLEDAR!F6","v":"2016-06-28"},{"$f":"KOLEDAR!G6","v":0},{"$f":"KOLEDAR!H6","v":0},{"$f":"KOLEDAR!I6","v":"2016-06-29"},{"$f":"KOLEDAR!J6","v":0},{"$f":"KOLEDAR!K6","v":0},{"$f":"KOLEDAR!L6","v":"2016-06-30"},{"$f":"KOLEDAR!M6","v":0},{"$f":"KOLEDAR!N6","v":0},{"$f":"KOLEDAR!O6","v":"2016-07-01"},{"$f":"KOLEDAR!P6","v":0},{"$f":"KOLEDAR!Q6","v":0},{"$f":"KOLEDAR!R6","v":"2016-07-02"},{"$f":"KOLEDAR!S6","v":0},{"$f":"KOLEDAR!T6","v":0},{"$f":"KOLEDAR!U6","v":"2016-07-03"}]
[null,null,{"$f":"KOLEDAR!C7","v":""},{"$f":"KOLEDAR!D7","v":0},{"$f":"KOLEDAR!E7","v":0},{"$f":"KOLEDAR!F7","v":""},{"$f":"KOLEDAR!G7","v":0},{"$f":"KOLEDAR!H7","v":0},{"$f":"KOLEDAR!I7","v":""},{"$f":"KOLEDAR!J7","v":0},{"$f":"KOLEDAR!K7","v":0},{"$f":"KOLEDAR!L7","v":""},{"$f":"KOLEDAR!M7","v":0},{"$f":"KOLEDAR!N7","v":0},{"$f":"KOLEDAR!O7","v":"Vrt skupnosti"},{"$f":"KOLEDAR!P7","v":0},{"$f":"KOLEDAR!Q7","v":0},{"$f":"KOLEDAR!R7","v":"Vrt skupnosti"},{"$f":"KOLEDAR!S7","v":0},{"$f":"KOLEDAR!T7","v":0},{"$f":"KOLEDAR!U7","v":"večer ogleda filmov v parku"}]
[null,null,{"$f":"KOLEDAR!C8","v":""},{"$f":"KOLEDAR!D8","v":"00:00:00"},{"$f":"KOLEDAR!E8","v":"00:00:00"},{"$f":"KOLEDAR!F8","v":""},{"$f":"KOLEDAR!G8","v":"00:00:00"},{"$f":"KOLEDAR!H8","v":"00:00:00"},{"$f":"KOLEDAR!I8","v":""},{"$f":"KOLEDAR!J8","v":"00:00:00"},{"$f":"KOLEDAR!K8","v":"00:00:00"},{"$f":"KOLEDAR!L8","v":""},{"$f":"KOLEDAR!M8","v":"00:00:00"},{"$f":"KOLEDAR!N8","v":"00:00:00"},{"$f":"KOLEDAR!O8","v":"Mestni svet"},{"$f":"KOLEDAR!P8","v":"00:00:00"},{"$f":"KOLEDAR!Q8","v":"00:00:00"},{"$f":"KOLEDAR!R8","v":""},{"$f":"KOLEDAR!S8","v":"00:00:00"},{"$f":"KOLEDAR!T8","v":"00:00:00"},{"$f":"KOLEDAR!U8","v":""}]
[null,null,{"$f":"KOLEDAR!C9","v":""},{"$f":"KOLEDAR!D9","v":0},{"$f":"KOLEDAR!E9","v":0},{"$f":"KOLEDAR!F9","v":""},{"$f":"KOLEDAR!G9","v":0},{"$f":"KOLEDAR!H9","v":0},{"$f":"KOLEDAR!I9","v":""},{"$f":"KOLEDAR!J9","v":0},{"$f":"KOLEDAR!K9","v":0},{"$f":"KOLEDAR!L9","v":""},{"$f":"KOLEDAR!M9","v":0},{"$f":"KOLEDAR!N9","v":0},{"$f":"KOLEDAR!O9","v":""},{"$f":"KOLEDAR!P9","v":0},{"$f":"KOLEDAR!Q9","v":0},{"$f":"KOLEDAR!R9","v":""},{"$f":"KOLEDAR!S9","v":0},{"$f":"KOLEDAR!T9","v":0},{"$f":"KOLEDAR!U9","v":""}]
[null,null,{"$f":"KOLEDAR!C10","v":""},{"$f":"KOLEDAR!D10","v":0},{"$f":"KOLEDAR!E10","v":0},{"$f":"KOLEDAR!F10","v":""},{"$f":"KOLEDAR!G10","v":0},{"$f":"KOLEDAR!H10","v":0},{"$f":"KOLEDAR!I10","v":""},{"$f":"KOLEDAR!J10","v":0},{"$f":"KOLEDAR!K10","v":0},{"$f":"KOLEDAR!L10","v":""},{"$f":"KOLEDAR!M10","v":0},{"$f":"KOLEDAR!N10","v":0},{"$f":"KOLEDAR!O10","v":""},{"$f":"KOLEDAR!P10","v":0},{"$f":"KOLEDAR!Q10","v":0},{"$f":"KOLEDAR!R10","v":""},{"$f":"KOLEDAR!S10","v":0},{"$f":"KOLEDAR!T10","v":0},{"$f":"KOLEDAR!U10","v":""}]
[null,null,{"$f":"KOLEDAR!C11","v":"2016-07-04"},{"$f":"KOLEDAR!D11","v":0},{"$f":"KOLEDAR!E11","v":0},{"$f":"KOLEDAR!F11","v":"2016-07-05"},{"$f":"KOLEDAR!G11","v":0},{"$f":"KOLEDAR!H11","v":0},{"$f":"KOLEDAR!I11","v":"2016-07-06"},{"$f":"KOLEDAR!J11","v":0},{"$f":"KOLEDAR!K11","v":0},{"$f":"KOLEDAR!L11","v":"2016-07-07"},{"$f":"KOLEDAR!M11","v":0},{"$f":"KOLEDAR!N11","v":0},{"$f":"KOLEDAR!O11","v":"2016-07-08"},{"$f":"KOLEDAR!P11","v":0},{"$f":"KOLEDAR!Q11","v":0},{"$f":"KOLEDAR!R11","v":"2016-07-09"},{"$f":"KOLEDAR!S11","v":0},{"$f":"KOLEDAR!T11","v":0},{"$f":"KOLEDAR!U11","v":"2016-07-10"}]
[null,null,{"$f":"KOLEDAR!C12","v":""},{"$f":"KOLEDAR!D12","v":0},{"$f":"KOLEDAR!E12","v":0},{"$f":"KOLEDAR!F12","v":""},{"$f":"KOLEDAR!G12","v":0},{"$f":"KOLEDAR!H12","v":0},{"$f":"KOLEDAR!I12","v":""},{"$f":"KOLEDAR!J12","v":0},{"$f":"KOLEDAR!K12","v":0},{"$f":"KOLEDAR!L12","v":""},{"$f":"KOLEDAR!M12","v":0},{"$f":"KOLEDAR!N12","v":0},{"$f":"KOLEDAR!O12","v":"Mestni svet"},{"$f":"KOLEDAR!P12","v":0},{"$f":"KOLEDAR!Q12","v":0},{"$f":"KOLEDAR!R12","v":""},{"$f":"KOLEDAR!S12","v":0},{"$f":"KOLEDAR!T12","v":0},{"$f":"KOLEDAR!U12","v":""}]
[null,null,{"$f":"KOLEDAR!C13","v":""},{"$f":"KOLEDAR!D13","v":0},{"$f":"KOLEDAR!E13","v":0},{"$f":"KOLEDAR!F13","v":""},{"$f":"KOLEDAR!G13","v":0},{"$f":"KOLEDAR!H13","v":0},{"$f":"KOLEDAR!I13","v":""},{"$f":"KOLEDAR!J13","v":0},{"$f":"KOLEDAR!K13","v":0},{"$f":"KOLEDAR!L13","v":""},{"$f":"KOLEDAR!M13","v":0},{"$f":"KOLEDAR!N13","v":0},{"$f":"KOLEDAR!O13","v":""},{"$f":"KOLEDAR!P13","v":0},{"$f":"KOLEDAR!Q13","v":0},{"$f":"KOLEDAR!R13","v":""},{"$f":"KOLEDAR!S13","v":0},{"$f":"KOLEDAR!T13","v":0},{"$f":"KOLEDAR!U13","v":""}]
[null,null,{"$f":"KOLEDAR!C14","v":""},{"$f":"KOLEDAR!D14","v":0},{"$f":"KOLEDAR!E14","v":0},{"$f":"KOLEDAR!F14","v":""},{"$f":"KOLEDAR!G14","v":0},{"$f":"KOLEDAR!H14","v":0},{"$f":"KOLEDAR!I14","v":""},{"$f":"KOLEDAR!J14","v":0},{"$f":"KOLEDAR!K14","v":0},{"$f":"KOLEDAR!L14","v":""},{"$f":"KOLEDAR!M14","v":0},{"$f":"KOLEDAR!N14","v":0},{"$f":"KOLEDAR!O14","v":""},{"$f":"KOLEDAR!P14","v":0},{"$f":"KOLEDAR!Q14","v":0},{"$f":"KOLEDAR!R14","v":""},{"$f":"KOLEDAR!S14","v":0},{"$f":"KOLEDAR!T14","v":0},{"$f":"KOLEDAR!U14","v":""}]
[null,null,{"$f":"KOLEDAR!C15","v":""},{"$f":"KOLEDAR!D15","v":0},{"$f":"KOLEDAR!E15","v":0},{"$f":"KOLEDAR!F15","v":""},{"$f":"KOLEDAR!G15","v":0},{"$f":"KOLEDAR!H15","v":0},{"$f":"KOLEDAR!I15","v":""},{"$f":"KOLEDAR!J15","v":0},{"$f":"KOLEDAR!K15","v":0},{"$f":"KOLEDAR!L15","v":""},{"$f":"KOLEDAR!M15","v":0},{"$f":"KOLEDAR!N15","v":0},{"$f":"KOLEDAR!O15","v":""},{"$f":"KOLEDAR!P15","v":0},{"$f":"KOLEDAR!Q15","v":0},{"$f":"KOLEDAR!R15","v":""},{"$f":"KOLEDAR!S15","v":0},{"$f":"KOLEDAR!T15","v":0},{"$f":"KOLEDAR!U15","v":""}]
[null,null,{"$f":"KOLEDAR!C16","v":"2016-07-11"},{"$f":"KOLEDAR!D16","v":0},{"$f":"KOLEDAR!E16","v":0},{"$f":"KOLEDAR!F16","v":"2016-07-12"},{"$f":"KOLEDAR!G16","v":0},{"$f":"KOLEDAR!H16","v":0},{"$f":"KOLEDAR!I16","v":"2016-07-13"},{"$f":"KOLEDAR!J16","v":0},{"$f":"KOLEDAR!K16","v":0},{"$f":"KOLEDAR!L16","v":"2016-07-14"},{"$f":"KOLEDAR!M16","v":0},{"$f":"KOLEDAR!N16","v":0},{"$f":"KOLEDAR!O16","v":"2016-07-15"},{"$f":"KOLEDAR!P16","v":0},{"$f":"KOLEDAR!Q16","v":0},{"$f":"KOLEDAR!R16","v":"2016-07-16"},{"$f":"KOLEDAR!S16","v":0},{"$f":"KOLEDAR!T16","v":0},{"$f":"KOLEDAR!U16","v":"2016-07-17"}]
[null,null,{"$f":"KOLEDAR!C17","v":"Delovno kosilo trgovinske zbornice"},{"$f":"KOLEDAR!D17","v":0},{"$f":"KOLEDAR!E17","v":0},{"$f":"KOLEDAR!F17","v":"Sejem starin"},{"$f":"KOLEDAR!G17","v":0},{"$f":"KOLEDAR!H17","v":0},{"$f":"KOLEDAR!I17","v":""},{"$f":"KOLEDAR!J17","v":0},{"$f":"KOLEDAR!K17","v":0},{"$f":"KOLEDAR!L17","v":"Delavnica skupnosti"},{"$f":"KOLEDAR!M17","v":0},{"$f":"KOLEDAR!N17","v":0},{"$f":"KOLEDAR!O17","v":"Mestni svet"},{"$f":"KOLEDAR!P17","v":0},{"$f":"KOLEDAR!Q17","v":0},{"$f":"KOLEDAR!R17","v":""},{"$f":"KOLEDAR!S17","v":0},{"$f":"KOLEDAR!T17","v":0},{"$f":"KOLEDAR!U17","v":""}]
[null,null,{"$f":"KOLEDAR!C18","v":""},{"$f":"KOLEDAR!D18","v":0},{"$f":"KOLEDAR!E18","v":0},{"$f":"KOLEDAR!F18","v":""},{"$f":"KOLEDAR!G18","v":0},{"$f":"KOLEDAR!H18","v":0},{"$f":"KOLEDAR!I18","v":""},{"$f":"KOLEDAR!J18","v":0},{"$f":"KOLEDAR!K18","v":0},{"$f":"KOLEDAR!L18","v":""},{"$f":"KOLEDAR!M18","v":0},{"$f":"KOLEDAR!N18","v":0},{"$f":"KOLEDAR!O18","v":""},{"$f":"KOLEDAR!P18","v":0},{"$f":"KOLEDAR!Q18","v":0},{"$f":"KOLEDAR!R18","v":""},{"$f":"KOLEDAR!S18","v":0},{"$f":"KOLEDAR!T18","v":0},{"$f":"KOLEDAR!U18","v":""}]
[null,null,{"$f":"KOLEDAR!C19","v":""},{"$f":"KOLEDAR!D19","v":0},{"$f":"KOLEDAR!E19","v":0},{"$f":"KOLEDAR!F19","v":""},{"$f":"KOLEDAR!G19","v":0},{"$f":"KOLEDAR!H19","v":0},{"$f":"KOLEDAR!I19","v":""},{"$f":"KOLEDAR!J19","v":0},{"$f":"KOLEDAR!K19","v":0},{"$f":"KOLEDAR!L19","v":""},{"$f":"KOLEDAR!M19","v":0},{"$f":"KOLEDAR!N19","v":0},{"$f":"KOLEDAR!O19","v":""},{"$f":"KOLEDAR!P19","v":0},{"$f":"KOLEDAR!Q19","v":0},{"$f":"KOLEDAR!R19","v":""},{"$f":"KOLEDAR!S19","v":0},{"$f":"KOLEDAR!T19","v":0},{"$f":"KOLEDAR!U19","v":""}]
[null,null,{"$f":"KOLEDAR!C20","v":""},{"$f":"KOLEDAR!D20","v":0},{"$f":"KOLEDAR!E20","v":0},{"$f":"KOLEDAR!F20","v":""},{"$f":"KOLEDAR!G20","v":0},{"$f":"KOLEDAR!H20","v":0},{"$f":"KOLEDAR!I20","v":""},{"$f":"KOLEDAR!J20","v":0},{"$f":"KOLEDAR!K20","v":0},{"$f":"KOLEDAR!L20","v":""},{"$f":"KOLEDAR!M20","v":0},{"$f":"KOLEDAR!N20","v":0},{"$f":"KOLEDAR!O20","v":""},{"$f":"KOLEDAR!P20","v":0},{"$f":"KOLEDAR!Q20","v":0},{"$f":"KOLEDAR!R20","v":""},{"$f":"KOLEDAR!S20","v":0},{"$f":"KOLEDAR!T20","v":0},{"$f":"KOLEDAR!U20","v":""}]
[null,null,{"$f":"KOLEDAR!C21","v":"2016-07-18"},{"$f":"KOLEDAR!D21","v":0},{"$f":"KOLEDAR!E21","v":0},{"$f":"KOLEDAR!F21","v":"2016-07-19"},{"$f":"KOLEDAR!G21","v":0},{"$f":"KOLEDAR!H21","v":0},{"$f":"KOLEDAR!I21","v":"2016-07-20"},{"$f":"KOLEDAR!J21","v":0},{"$f":"KOLEDAR!K21","v":0},{"$f":"KOLEDAR!L21","v":"2016-07-21"},{"$f":"KOLEDAR!M21","v":0},{"$f":"KOLEDAR!N21","v":0},{"$f":"KOLEDAR!O21","v":"2016-07-22"},{"$f":"KOLEDAR!P21","v":0},{"$f":"KOLEDAR!Q21","v":0},{"$f":"KOLEDAR!R21","v":"2016-07-23"},{"$f":"KOLEDAR!S21","v":0},{"$f":"KOLEDAR!T21","v":0},{"$f":"KOLEDAR!U21","v":"2016-07-24"}]
[null,null,{"$f":"KOLEDAR!C22","v":""},{"$f":"KOLEDAR!D22","v":0},{"$f":"KOLEDAR!E22","v":0},{"$f":"KOLEDAR!F22","v":"Delavnica strateškega načrtovanja"},{"$f":"KOLEDAR!G22","v":0},{"$f":"KOLEDAR!H22","v":0},{"$f":"KOLEDAR!I22","v":"Čistilna akcija v parku"},{"$f":"KOLEDAR!J22","v":0},{"$f":"KOLEDAR!K22","v":0},{"$f":"KOLEDAR!L22","v":""},{"$f":"KOLEDAR!M22","v":0},{"$f":"KOLEDAR!N22","v":0},{"$f":"KOLEDAR!O22","v":"Mestni svet"},{"$f":"KOLEDAR!P22","v":0},{"$f":"KOLEDAR!Q22","v":0},{"$f":"KOLEDAR!R22","v":""},{"$f":"KOLEDAR!S22","v":0},{"$f":"KOLEDAR!T22","v":0},{"$f":"KOLEDAR!U22","v":""}]
[null,null,{"$f":"KOLEDAR!C23","v":""},{"$f":"KOLEDAR!D23","v":0},{"$f":"KOLEDAR!E23","v":0},{"$f":"KOLEDAR!F23","v":""},{"$f":"KOLEDAR!G23","v":0},{"$f":"KOLEDAR!H23","v":0},{"$f":"KOLEDAR!I23","v":""},{"$f":"KOLEDAR!J23","v":0},{"$f":"KOLEDAR!K23","v":0},{"$f":"KOLEDAR!L23","v":""},{"$f":"KOLEDAR!M23","v":0},{"$f":"KOLEDAR!N23","v":0},{"$f":"KOLEDAR!O23","v":""},{"$f":"KOLEDAR!P23","v":0},{"$f":"KOLEDAR!Q23","v":0},{"$f":"KOLEDAR!R23","v":""},{"$f":"KOLEDAR!S23","v":0},{"$f":"KOLEDAR!T23","v":0},{"$f":"KOLEDAR!U23","v":""}]
[null,null,{"$f":"KOLEDAR!C24","v":""},{"$f":"KOLEDAR!D24","v":0},{"$f":"KOLEDAR!E24","v":0},{"$f":"KOLEDAR!F24","v":""},{"$f":"KOLEDAR!G24","v":0},{"$f":"KOLEDAR!H24","v":0},{"$f":"KOLEDAR!I24","v":""},{"$f":"KOLEDAR!J24","v":0},{"$f":"KOLEDAR!K24","v":0},{"$f":"KOLEDAR!L24","v":""},{"$f":"KOLEDAR!M24","v":0},{"$f":"KOLEDAR!N24","v":0},{"$f":"KOLEDAR!O24","v":""},{"$f":"KOLEDAR!P24","v":0},{"$f":"KOLEDAR!Q24","v":0},{"$f":"KOLEDAR!R24","v":""},{"$f":"KOLEDAR!S24","v":0},{"$f":"KOLEDAR!T24","v":0},{"$f":"KOLEDAR!U24","v":""}]
[null,null,{"$f":"KOLEDAR!C25","v":""},{"$f":"KOLEDAR!D25","v":0},{"$f":"KOLEDAR!E25","v":0},{"$f":"KOLEDAR!F25","v":""},{"$f":"KOLEDAR!G25","v":0},{"$f":"KOLEDAR!H25","v":0},{"$f":"KOLEDAR!I25","v":""},{"$f":"KOLEDAR!J25","v":0},{"$f":"KOLEDAR!K25","v":0},{"$f":"KOLEDAR!L25","v":""},{"$f":"KOLEDAR!M25","v":0},{"$f":"KOLEDAR!N25","v":0},{"$f":"KOLEDAR!O25","v":""},{"$f":"KOLEDAR!P25","v":0},{"$f":"KOLEDAR!Q25","v":0},{"$f":"KOLEDAR!R25","v":""},{"$f":"KOLEDAR!S25","v":0},{"$f":"KOLEDAR!T25","v":0},{"$f":"KOLEDAR!U25","v":""}]
[null,null,{"$f":"KOLEDAR!C26","v":"2016-07-25"},{"$f":"KOLEDAR!D26","v":0},{"$f":"KOLEDAR!E26","v":0},{"$f":"KOLEDAR!F26","v":"2016-07-26"},{"$f":"KOLEDAR!G26","v":0},{"$f":"KOLEDAR!H26","v":0},{"$f":"KOLEDAR!I26","v":"2016-07-27"},{"$f":"KOLEDAR!J26","v":0},{"$f":"KOLEDAR!K26","v":0},{"$f":"KOLEDAR!L26","v":"2016-07-28"},{"$f":"KOLEDAR!M26","v":0},{"$f":"KOLEDAR!N26","v":0},{"$f":"KOLEDAR!O26","v":"2016-07-29"},{"$f":"KOLEDAR!P26","v":0},{"$f":"KOLEDAR!Q26","v":0},{"$f":"KOLEDAR!R26","v":"2016-07-30"},{"$f":"KOLEDAR!S26","v":0},{"$f":"KOLEDAR!T26","v":0},{"$f":"KOLEDAR!U26","v":"2016-07-31"}]
[null,null,{"$f":"KOLEDAR!C27","v":""},{"$f":"KOLEDAR!D27","v":0},{"$f":"KOLEDAR!E27","v":0},{"$f":"KOLEDAR!F27","v":"Sprehod po središču mesta"},{"$f":"KOLEDAR!G27","v":0},{"$f":"KOLEDAR!H27","v":0},{"$f":"KOLEDAR!I27","v":""},{"$f":"KOLEDAR!J27","v":0},{"$f":"KOLEDAR!K27","v":0},{"$f":"KOLEDAR!L27","v":""},{"$f":"KOLEDAR!M27","v":0},{"$f":"KOLEDAR!N27","v":0},{"$f":"KOLEDAR!O27","v":"Mestni svet"},{"$f":"KOLEDAR!P27","v":0},{"$f":"KOLEDAR!Q27","v":0},{"$f":"KOLEDAR!R27","v":""},{"$f":"KOLEDAR!S27","v":0},{"$f":"KOLEDAR!T27","v":0},{"$f":"KOLEDAR!U27","v":""}]
[null,null,{"$f":"KOLEDAR!C28","v":""},{"$f":"KOLEDAR!D28","v":0},{"$f":"KOLEDAR!E28","v":0},{"$f":"KOLEDAR!F28","v":"Obhod po barih"},{"$f":"KOLEDAR!G28","v":0},{"$f":"KOLEDAR!H28","v":0},{"$f":"KOLEDAR!I28","v":""},{"$f":"KOLEDAR!J28","v":0},{"$f":"KOLEDAR!K28","v":0},{"$f":"KOLEDAR!L28","v":""},{"$f":"KOLEDAR!M28","v":0},{"$f":"KOLEDAR!N28","v":0},{"$f":"KOLEDAR!O28","v":""},{"$f":"KOLEDAR!P28","v":0},{"$f":"KOLEDAR!Q28","v":0},{"$f":"KOLEDAR!R28","v":""},{"$f":"KOLEDAR!S28","v":0},{"$f":"KOLEDAR!T28","v":0},{"$f":"KOLEDAR!U28","v":""}]
[null,null,{"$f":"KOLEDAR!C29","v":""},{"$f":"KOLEDAR!D29","v":0},{"$f":"KOLEDAR!E29","v":0},{"$f":"KOLEDAR!F29","v":""},{"$f":"KOLEDAR!G29","v":0},{"$f":"KOLEDAR!H29","v":0},{"$f":"KOLEDAR!I29","v":""},{"$f":"KOLEDAR!J29","v":0},{"$f":"KOLEDAR!K29","v":0},{"$f":"KOLEDAR!L29","v":""},{"$f":"KOLEDAR!M29","v":0},{"$f":"KOLEDAR!N29","v":0},{"$f":"KOLEDAR!O29","v":""},{"$f":"KOLEDAR!P29","v":0},{"$f":"KOLEDAR!Q29","v":0},{"$f":"KOLEDAR!R29","v":""},{"$f":"KOLEDAR!S29","v":0},{"$f":"KOLEDAR!T29","v":0},{"$f":"KOLEDAR!U29","v":""}]
[null,null,{"$f":"KOLEDAR!C30","v":""},{"$f":"KOLEDAR!D30","v":0},{"$f":"KOLEDAR!E30","v":0},{"$f":"KOLEDAR!F30","v":""},{"$f":"KOLEDAR!G30","v":0},{"$f":"KOLEDAR!H30","v":0},{"$f":"KOLEDAR!I30","v":""},{"$f":"KOLEDAR!J30","v":0},{"$f":"KOLEDAR!K30","v":0},{"$f":"KOLEDAR!L30","v":""},{"$f":"KOLEDAR!M30","v":0},{"$f":"KOLEDAR!N30","v":0},{"$f":"KOLEDAR!O30","v":""},{"$f":"KOLEDAR!P30","v":0},{"$f":"KOLEDAR!Q30","v":0},{"$f":"KOLEDAR!R30","v":""},{"$f":"KOLEDAR!S30","v":0},{"$f":"KOLEDAR!T30","v":0},{"$f":"KOLEDAR!U30","v":""}]
[null,null,{"$f":"KOLEDAR!C31","v":"2016-08-01"},{"$f":"KOLEDAR!D31","v":0},{"$f":"KOLEDAR!E31","v":0},{"$f":"KOLEDAR!F31","v":"2016-08-02"},null,null,{"$f":"KOLEDAR!I31","v":"OPOMBE:"}]
[null,null,{"$f":"KOLEDAR!C32","v":""},{"$f":"KOLEDAR!D32","v":0},{"$f":"KOLEDAR!E32","v":0},{"$f":"KOLEDAR!F32","v":""}]
[null,null,{"$f":"KOLEDAR!C33","v":""},{"$f":"KOLEDAR!D33","v":0},{"$f":"KOLEDAR!E33","v":0},{"$f":"KOLEDAR!F33","v":""}]
[null,null,{"$f":"KOLEDAR!C34","v":""},{"$f":"KOLEDAR!D34","v":0},{"$f":"KOLEDAR!E34","v":0},{"$f":"KOLEDAR!F34","v":""}]
[null,null,{"$f":"KOLEDAR!C35","v":""},{"$f":"KOLEDAR!D35","v":0},{"$f":"KOLEDAR!E35","v":0},{"$f":"KOLEDAR!F35","v":""}]

{"sheet":"SKRBNIK","index":3,"n_rows":14,"n_cols":3,"rows_kept":14,"hidden":true}
[]
[null,"MESEC","ŠTEVILKA"]
[null,"JANUAR",1]
[null,"FEBRUAR",2]
[null,"MAREC",3]
[null,"APRIL",4]
[null,"MAJ",5]
[null,"JUNIJ",6]
[null,"JULIJ",7]
[null,"AVGUST",8]
[null,"SEPTEMBER",9]
[null,"OKTOBER",10]
[null,"NOVEMBER",11]
[null,"DECEMBER",12]